{"text_format":"1","workbook":"xlsx","n_sheets":7,"sheets":["Introduction","HW Install Prep Checklist","Customer Contacts","Wookbook","More Info","3PAR Ports","Macros Required"],"not_rendered":{"charts":0,"images":26,"macros":1,"external_links":0,"defined_names":244,"comments":0,"pivot_tables":0},"unopened":[],"bounds":{"document_bytes":16777216,"sheet_cells":100000,"rows_first":2000,"rows_last":500,"rows_between":2000,"halvings":0,"cell_chars":16384,"cell_head_chars":4096},"cells_cut":0,"cells_raw":0,"read":"whole","date_system":"1900"}

{"sheet":"Introduction","index":0,"n_rows":11,"n_cols":3,"rows_kept":11,"cut":false,"hidden":true,"merged":[[8,1,8,10],[1,1,1,2],[2,1,2,10],[3,1,3,10],[4,1,4,6],[5,1,5,10],[6,1,6,10]]}
[null,{"$f":"#REF!","v":{"$error":"#REF!"}}]
[null,"Customer"]
[null,"HP Storeserv 8000 Hardware Installation Checklist"]
[null,"Introduction"]
[null," "]
[null,"Dear HP Customer,"]
[null,"Please work with your account team to complete and submit the information on the Site Readiness and Pre-Checks tab of this document. Your installation and system set-up cannot be coordinated until all information is filled-in and submitted to HP for review. Please note: A checklist must be completed for each StoreServ system and only 1 system is allowed per checklist. \n         \nAll fields are mandatory and must be completed. You will notice a red status marker at the top of the document that reads: \"all fields are mandatory\".   Once all of the information has been provided, the red status will change to green indicating \"all fields are completed\".  This document cannot be accepted by HP if information is missing. \n         \nSome fields have MORE INFO links, which provides limited addtional information about each item.  Should you still have any questions or need assistance filling out this document, feel free to contact your account team for assistance.\n         \nOnce submitted, the information will be reviewed for accuracy and your installation can be coordinated with HP. \n"]
[]
[null,"StoreServ 8000 Hardware Installation Prep Checklist © Copyright Hewlett Packard Enterprise"]
[]
[null,"Hwprep","v143"]

{"sheet":"HW Install Prep Checklist","index":1,"n_rows":169,"n_cols":12,"rows_kept":169,"cut":false,"hidden":true,"merged":[[163,2,163,4],[164,2,164,4],[165,2,165,4],[168,2,168,7],[169,2,178,9],[156,2,156,4],[157,2,157,4],[158,2,158,4],[159,2,159,4],[161,2,161,4],[162,2,162,4],[150,2,150,4],[151,2,151,4],[152,2,152,4],[153,2,153,4],[154,2,154,4],[155,2,155,4],[142,2,142,4],[143,2,143,4],[145,2,145,4],[147,2,147,4],[148,2,148,4],[149,2,149,4],[136,2,136,4],[137,2,137,4],[138,2,138,4],[139,2,139,4],[140,2,140,4],[141,2,141,4],[130,2,130,4],[131,2,131,4],[132,2,132,4],[133,2,133,4],[134,2,134,4],[135,2,135,4],[124,2,124,4],[125,2,125,4],[126,2,126,4],[127,2,127,4],[128,2,128,4],[129,2,129,4],[117,2,117,4],[119,2,119,4],[120,2,120,4],[122,2,122,4],[121,2,121,4],[123,2,123,4],[110,2,110,4],[111,2,111,4],[112,2,112,4],[113,2,113,4],[114,2,114,4],[115,2,115,4],[104,2,104,4],[105,2,105,4],[106,2,106,4],[107,2,107,4],[108,2,108,4],[109,2,109,4],[98,2,98,4],[99,2,99,4],[100,2,100,4],[101,2,101,4],[102,2,102,4],[103,2,103,4],[92,2,92,4],[93,2,93,4],[94,2,94,4],[95,2,95,4],[96,2,96,4],[97,2,97,4],[86,2,86,4],[87,2,87,4],[88,2,88,4],[89,2,89,4],[90,2,90,4],[91,2,91,4],[80,2,80,4],[81,2,81,4],[82,2,82,4],[83,2,83,4],[84,2,84,4],[85,2,85,4],[74,2,74,4],[75,2,75,4],[76,2,76,4],[77,2,77,4],[78,2,78,4],[79,2,79,4],[57,2,57,4],[58,2,58,4],[59,2,59,4],[60,2,60,4],[72,2,72,4],[73,2,73,4],[67,2,67,4],[68,2,68,4],[69,2,69,4],[70,2,70,4],[71,2,71,4],[56,2,56,4],[54,2,54,4],[55,2,55,4],[61,2,61,4],[62,2,62,4],[64,2,64,4],[66,2,66,4],[48,2,48,4],[49,2,49,4],[50,2,50,4],[51,2,51,4],[52,2,52,4],[53,2,53,4],[40,2,40,4],[41,2,41,4],[43,2,43,4],[45,2,45,4],[46,2,46,4],[47,2,47,4],[34,2,34,4],[35,2,35,4],[36,2,36,4],[37,2,37,4],[38,2,38,4],[39,2,39,4],[25,2,25,4],[26,2,26,4],[27,2,27,4],[28,2,28,4],[31,2,31,4],[33,2,33,4],[19,2,19,4],[20,2,20,4],[21,2,21,4],[22,2,22,4],[23,2,23,4],[24,2,24,4],[16,2,16,4],[17,2,17,4],[18,2,18,4],[7,2,7,4],[8,2,8,4],[9,2,9,4],[10,2,10,4],[11,2,11,4],[12,2,12,4],[1,2,1,7],[1,9,1,11],[2,2,2,7],[2,9,2,11],[4,2,4,4],[6,2,6,4],[13,2,13,4],[14,2,14,4],[15,2,15,4]]}
[" ","`","Red"]
[null,null,{"$f":"\"HP Storeserv 8000 Hardware Install Prep Checklist \" & zChecklistVersion","v":"HP Storeserv 8000 Hardware Install Prep Checklist v143"}]
[null,null,"Site Readiness and Pre Checks"]
[]
[null,null,"Installation specific information (completed by HP PM)",null,null,null,null,"ALL FIELDS ARE MANDATORY"]
[null,null,null,null,null,null,null,null,null,null,null,"Optional HP comments"]
["A",null,"Company Name"]
["B",null,"Company Address "]
["C",null,"Address2"]
["D",null,"City, State, ZIP"]
["E",null,"HPE Storage PM",null,null,null,null,"Mark Bardell"]
["F",null,"     Phone",null,null,null,null,"512-319-3998"]
["G",null,"     Email",null,null,null,null,"mark.bardell@hpe.com"]
["H",null,"Is this being installed by HPE or Partner?",null,null,null,null,"HP"]
["J",null,"HPE Sales order number"]
["K",null,"IPID",null,null,null,null,11111]
["L",null,"Rack source",null,null,null,null,"Customer supplied rack"]
["M",null,"Rack integration",null,null,null,null,"Field racked at customer site"]
["M.1",null,"     Number of racks for Factory-racked orders"]
["N",null,"Number of PDUs ordered",null,null,null,null,0]
["N.1",null,"     Type of receptacle required for PDU: (Typ L6-30R)"]
["P",null,"What model 3PAR 8000 will be installed?",null,null,null,null,"8200"]
["Q",null,"Adapters",null,null,null,null,"FC"]
["R",null,"Number of SFF enclosures:",null,null,null,null,1]
["S",null,"Number of LFF enclosures:",null,null,null,null,0]
["T",null,"Number of SFF drives:",null,null,null,null,8]
["U",null,"Number of LFF drives:",null,null,null,null,0]
["V",null,"Service Processor Type",null,null,null,null,"Virtual"]
["W",null,"HPE Serial Number"]
[]
[]
[null,null,"Customer information (completed by customer)"]
[null,null,null,null,null,null,null,null,null,null,null,"Optional customer comments"]
[1,null,"Do you understand the checklist instructions? (See more info)",null,null,"more info",null,"Yes"]
[2,null,"Have you downloaded the needed 3PAR manuals?",null,null,"more info",null,"Yes"]
[3,null,"Is the installation address the same as B, C & D above?",null,null,null,null,"Yes"]
["3.a",null,"    Installation Address "]
["3.b",null,"    Installation Address (additonal line)"]
["3.c",null,"    Installation City, State, ZIP"]
[4,null,"Customer Contacts Information",null,null,null,null,"Click link to provide Contact Data"]
[5,null,"Data Center Type",null,null,"more info",null,"Customer Data Center"]
[6,null,"Is this data center a Dark Site? (No Internet)",null,null,"more info",null,"No"]
[]
[null,null,"Site readiness pre checks (completed by customer)"]
[null,null,null,null,null,null,null,null,null,null,null,"Optional customer comments"]
[10,null,"Has your configuration been validated against SPOCK?",null,null,"more info",null,"No"]
[11,null,"Do you have a 4-post square-hole rack available?",null,null,"more info","*","Yes"]
[12,null,"Are  4  U of rack space available?",null,null,"more info","*","Yes"]
[13,null,"Where in the rack should the 3PAR be placed?",null,null,"more info",null,"U location will be provided"]
[14,null,"Are  4  receptacles of type  C13  available?",null,null,"more info","*","Yes"]
[15,null,"Are {NN} receptacles of type {XX} available for the PDUs?",null,null,"more info","*"]
[16,null,"Are your providing redundant power?",null,null,"more info",null,"Yes"]
[17,null,"Is there 36\" open space in front and behind the rack?",null,null,"more info",null,"Yes"]
[18,null,"What time zone should be used?",null,null,null,null,"CDT"]
[19,null,"Enable NTP Support?",null,null,null,null,"No"]
["19.a",null,"     NTP Server IPv4 address"]
[20,null,"Enable DNS Support?",null,null,"more info",null,"Yes"]
["20.a",null,"     Please enter the DNS domain name?"]
["20.b",null,"     IPv4 address of your domain server?"]
["20.c",null,"     Will domain server be available during HW install?",null,null,"more info"]
["20.d",null,"     Are the required DNS entries completed?",null,null,"more info"]
[21,null,"Status of the SSMC management console?",null,null,"more info",null,"New Virtual SSMC"]
["21.a",null,"     Is 1 network drop for the Physcial SSMC available?"]
[]
[null,null,"StoreServ (completed by customer)"]
[null,null,null,null,null,null,null,null,null,null,null,"Optional customer comments"]
[25,null,"StoreServ System Name"]
[26,null,"Are  2  network drops pulled & ready for the 3PAR nodes?",null,null,"more info","*","Yes"]
[27,null,"IP Address for StoreServ",null,null,"more info"]
[28,null,"Subnet Mask"]
[29,null,"Gateway IP"]
[30,null,"Network Speed",null,null,null,null,"Auto"]
[31,null,"Disable non-encrypted ports?",null,null,"more info",null,"No"]
[32,null,"Sparing Choice",null,null,"more info",null,"Default"]
[33,null,"OS, MU, or Patch levels",null,null,"more info",null,"Most Current"]
["33.a",null,"    Provide your required OS, MU and Patch level"]
[34,null,"Are you using FC for host connections?",null,null,"more info",null,"Yes"]
["34.a",null,"     How many FC connections will be used?",null,null,null,null,4]
["34.b",null,"     FC connection topology",null,null,null,null,"SAN-connected"]
["34.c",null,"     Will the FC cables be available at HW install?",null,null,null,null,"Yes"]
[35,null,"Are you using iSCSI for host connections?",null,null,"more info",null,"No"]
["35.a",null,"     How many iSCSI connections will be used?"]
["35.b",null,"     Using fiber cables or DAC cables for iSCSI?"]
["35.c",null,"     Will the iSCSI cables be available at HW install?"]
["35.d",null,"     MTU"]
["35.e",null,"     iSCSI Network Mask"]
["35.f",null,"     iSCSI Network Gateway"]
["35.g",null,"     iSCSI IP address #1"]
["35.h",null,"     iSCSI IP address #2"]
["35.j",null,"     iSCSI IP address #3"]
["35.k",null,"     iSCSI IP address #4"]
["35.m",null,"     iSCSI IP address #5"]
["35.m",null,"     iSCSI IP address #6"]
["35.p",null,"     iSCSI IP address #7"]
["35.q",null,"     iSCSI IP address #8"]
[36,null,"Are you using FCOE for host connections?",null,null,"more info",null,"No"]
["36.a",null,"      How many FCOE I connections will be used?"]
["36.b",null,"      Will the FCOE cables be available at HW install?"]
[37,null,"Are you replicating to another 3PAR?",null,null,null,null,"Yes"]
["37.a",null,"    Will RCIP connections be used for replication?",null,null,"more info",null,"No"]
["37.a.1",null,"         How many RCIP connections will be used?",null,null,null,null,null,null,null,null,"TBD"]
["37.a.2",null,"         Will the RCIP cables be available at HW install?",null,null,null,null,null,null,"Commit Date:"]
["37.a.3",null,"         RCIP Address 1"]
["37.a.4",null,"         RCIP Address 2"]
["37.a.5",null,"         RCIP Address 3"]
["37.a.6",null,"         RCIP Address 4"]
["37.a.7",null,"         RCIP Subnet Mask IP"]
["37.a.8",null,"         RCIP Gateway IP"]
["37.a.9",null,"         RCIP Network Speed"]
["37.b",null,"    Will RCFC connections be used for replication?",null,null,"more info",null,"No"]
["37.b.1",null,"         How many RCFC connections will be used?"]
["37.b.2",null,"         Will the RCFC fiber cables be available at HW install?",null,null,null,null,null,null,"Commit Date:"]
[38,null,"Are you using File Persona?",null,null,"more info",null,"No"]
["38.a",null,"     Which Ethernet ports will be used for File Persona?"]
["38.b",null,"     How many network drops will be used for File Persona?"]
["38.c",null,"     Will the File Persona cables be available at HW install?",null,null,null,null,null,null,"Commit Date:"]
[]
[null,null,"Service Processor (completed by customer)"]
[null,null,null,null,null,null,null,null,null,null,null,"Optional customer comments"]
[40,null,"Is your Virtual Service Processor ready?",null,null,"more info","*","Yes"]
[41,null,"Is there KVM access to the VSP close to the 3PAR?",null,null,"more info","*","Yes"]
[42,null,"Is  0  network drop pulled & ready for the Service Proc?",null,null,"more info","*","Yes",null,null,null,"But we only needed 99"]
[43,null,"Service Processor IP Address"]
[44,null,"Subnet Mask IP"]
[45,null,"Gateway IP"]
[46,null,"Network Speed",null,null,null,null,"Auto"]
[47,null,"Is this SP in the same subnet as the 3PAR Storage System?",null,null,"more info",null,"Yes"]
["47.a",null,"     Are ports 22, 5781, and 5782 routable now between subnets?",null,null,"more info"]
[48,null,"Enable Permissive Mode on the SP?",null,null,"more info",null,"Yes"]
["48.a",null,"     IP address or IP address range"]
[49,null,"Will ILO be configured on the SP?",null,null,null,null,"No"]
["49.a",null,"     ILO System Name"]
["49.b",null,"     ILO IP Address"]
["49.c",null,"     ILO Subnet Mask"]
["49.d",null,"     ILO Gateway IP"]
[50,null,"Would you like to configure local notification?",null,null,null,null,"No"]
["50.a",null,"     Customer mail host IP address"]
["50.b",null,"     Mail host domain name"]
["50.c",null,"     Company/Site name"]
["50.d",null,"     Site number, building number, etc.  (or blank)"]
["50.e",null,"     Time zone"]
["50.f",null,"     Users first and last name"]
["50.g",null,"     Users email address"]
["50.h",null,"     Users role/title"]
[]
[null,null,"Remote support (completed by customer)"]
[null,null,null,null,null,null,null,null,null,null,null,"Optional customer comments"]
[54,null,"Will the SP be configured for Remote Monitoring?",null,null,"more info",null,"Yes"]
[55,null,"Will the SP be configured for Remote Support?",null,null,"more info",null,"Yes"]
[56,null,"Is Proxy Server used for Remote Monitoring or Support?",null,null,"more info",null,"No"]
["56.a",null,"     Protocol:"]
["56.b",null,"     Address:"]
["56.c",null,"     Port:"]
["56.d",null,"     Enable Authentication?"]
["56.d.1",null,"          Login ID:"]
["56.d.2",null,"          Password:"]
["56.e",null,"    Has your Proxy Server configured?",null,null,"more info"]
[57,null,"Are you installing HP 3PAR Policy Server?",null,null,"more info",null,"No"]
["57.a",null,"     Hostname or IP address of the 3PAR Policy Server "]
["57.b",null,"     Port number to contact the Policy Server"]
[]
[58,null,"Have you reviewed the port diagram for your 3PAR?          →",null,null,"My Ports",null,"Yes"]
[59,null,"Name and phone of onsite-contact during the HW install.",null,null,"more info",null,null,null,null,null,"See contact info"]
[60,null,"Are there any other details or risks that HP needs to know?",null,null,"more info",null,"No"]
[61,null,"Arrivial, parking, entry, or security instructions",null,null,"more info",null,"Standard contact"]
[62,null,"Available HW install dates. ",null,null,"more info",null,"contact to discuss"]
[]
[]
[null,null,"Note and or additional information:"]

{"sheet":"Customer Contacts","index":2,"n_rows":13,"n_cols":8,"rows_kept":13,"cut":false,"hidden":true,"merged":[]}
[]
[]
[null,"Customer Contact Information"]
[]
[]
[null,"Contacts",null,"First Name","Last Name","Primary Phone (Office)","Seconday Phone (Mobile)","Email Address"]
[null,"Customer PM for this 3PAR Install"]
[null,"Storage Admin"]
[null,"Facilty Coordinator"]
[null,"Maintenance and Support Contact "]
[null,"Maintenance and Support Contact #2"]
[]
[null,null,null,null,"Return"]

{"sheet":"Wookbook","index":3,"n_rows":70,"n_cols":5,"rows_kept":70,"cut":false,"hidden":true,"merged":[]}
[]
[null,{"$f":"OFFSET(INDIRECT(E2),0,-7)","v":"J"},{"$f":"OFFSET(INDIRECT(E2),0,-5)","v":"HPE Sales order number"},{"$f":"IF(INDIRECT(E2)=\"\",\"\",INDIRECT(E2))","v":""},"aSalesOrderNumber"]
[null,{"$f":"OFFSET(INDIRECT(E3),0,-7)","v":"K"},"IPID",11111,"aIPID"]
[null,"P","What model 3PAR 8000 will be installed?","8200","aModel3PAR"]
[null,"M","Rack integration","Field racked at customer site","aRackIntegration"]
[null,"L","Rack source","Customer supplied rack","aRackSource"]
[null,{"$f":"OFFSET(INDIRECT(E7),0,-7)","v":"R"},"Number of SFF enclosures:",1,"aNumberOfSFFenclosures"]
[null,"S","Number of LFF enclosures:",0,"aNumberOfLFFenclosures"]
[null,{"$f":"OFFSET(INDIRECT(E9),0,-7)","v":"T"},"Number of SFF drives:",8,"aNumberOfSFFdrives"]
[null,"U","Number of LFF drives:",0,"aNumberofLFFdrives"]
[null,{"$error":"#REF!"},{"$error":"#REF!"},{"$error":"#REF!"}]
[null,{"$error":"#REF!"},{"$error":"#REF!"},{"$error":"#REF!"}]
[null,{"$f":"OFFSET(INDIRECT(E13),0,-7)","v":{"$error":"#REF!"}},{"$error":"#REF!"},{"$error":"#REF!"}]
[null,{"$error":"#REF!"},{"$error":"#REF!"},{"$error":"#REF!"}]
[null,{"$error":"#REF!"},{"$error":"#REF!"},{"$error":"#REF!"}]
[null,{"$error":"#REF!"},{"$error":"#REF!"},{"$error":"#REF!"}]
[null,{"$error":"#REF!"},{"$error":"#REF!"},{"$error":"#REF!"}]
[null,{"$error":"#REF!"},{"$error":"#REF!"},{"$error":"#REF!"}]
[null,{"$error":"#REF!"},{"$error":"#REF!"},{"$error":"#REF!"}]
[null,{"$error":"#REF!"},{"$error":"#REF!"},{"$error":"#REF!"}]
[null,{"$f":"OFFSET(INDIRECT(E21),0,-7)","v":{"$error":"#REF!"}},{"$error":"#REF!"},{"$error":"#REF!"}]
[null,{"$error":"#REF!"},{"$error":"#REF!"},{"$error":"#REF!"}]
[null,{"$error":"#REF!"},{"$error":"#REF!"},{"$error":"#REF!"}]
[null,{"$error":"#REF!"},{"$error":"#REF!"},{"$error":"#REF!"}]
[null,{"$error":"#REF!"},{"$error":"#REF!"},{"$error":"#REF!"}]
[null,{"$error":"#REF!"},{"$error":"#REF!"},{"$error":"#REF!"}]
[null,{"$error":"#REF!"},{"$error":"#REF!"},{"$error":"#REF!"}]
[null,{"$error":"#REF!"},{"$error":"#REF!"},{"$error":"#REF!"}]
[null,{"$error":"#REF!"},{"$error":"#REF!"},{"$error":"#REF!"}]
[null,{"$error":"#REF!"},{"$error":"#REF!"},{"$error":"#REF!"}]
[null,{"$error":"#REF!"},{"$error":"#REF!"},{"$error":"#REF!"}]
[null,{"$error":"#REF!"},{"$error":"#REF!"},{"$error":"#REF!"}]
[null,{"$error":"#REF!"},{"$error":"#REF!"},{"$error":"#REF!"}]
[null,{"$error":"#REF!"},{"$f":"OFFSET(INDIRECT(E34),0,-5)","v":{"$error":"#REF!"}},{"$f":"IF(INDIRECT(E34)=\"\",\"\",INDIRECT(E34))","v":{"$error":"#REF!"}}]
[null,{"$error":"#REF!"},{"$error":"#REF!"},{"$error":"#REF!"}]
[null,{"$error":"#REF!"},{"$error":"#REF!"},{"$error":"#REF!"}]
[null,{"$f":"OFFSET(INDIRECT(E37),0,-7)","v":{"$error":"#REF!"}},{"$error":"#REF!"},{"$error":"#REF!"}]
[null,{"$error":"#REF!"},{"$error":"#REF!"},{"$error":"#REF!"}]
[null,{"$error":"#REF!"},{"$error":"#REF!"},{"$error":"#REF!"}]
[null,{"$error":"#REF!"},{"$error":"#REF!"},{"$error":"#REF!"}]
[null,{"$error":"#REF!"},{"$error":"#REF!"},{"$error":"#REF!"}]
[null,{"$error":"#REF!"},{"$error":"#REF!"},{"$error":"#REF!"}]
[null,{"$error":"#REF!"},{"$error":"#REF!"},{"$error":"#REF!"}]
[null,{"$error":"#REF!"},{"$error":"#REF!"},{"$error":"#REF!"}]
[null,{"$error":"#REF!"},{"$error":"#REF!"},{"$error":"#REF!"}]
[null,{"$error":"#REF!"},{"$error":"#REF!"},{"$error":"#REF!"}]
[null,{"$error":"#REF!"},{"$error":"#REF!"},{"$error":"#REF!"}]
[null,{"$error":"#REF!"},{"$error":"#REF!"},{"$error":"#REF!"}]
[null,{"$error":"#REF!"},{"$error":"#REF!"},{"$error":"#REF!"}]
[null,{"$error":"#REF!"},{"$error":"#REF!"},{"$error":"#REF!"}]
[null,{"$error":"#REF!"},{"$error":"#REF!"},{"$error":"#REF!"}]
[null,{"$error":"#REF!"},{"$error":"#REF!"},{"$error":"#REF!"}]
[null,{"$error":"#REF!"},{"$error":"#REF!"},{"$error":"#REF!"}]
[null,{"$error":"#REF!"},{"$error":"#REF!"},{"$error":"#REF!"}]
[null,{"$error":"#REF!"},{"$error":"#REF!"},{"$error":"#REF!"}]
[null,{"$error":"#REF!"},{"$error":"#REF!"},{"$error":"#REF!"}]
[null,{"$error":"#REF!"},{"$error":"#REF!"},{"$error":"#REF!"}]
[null,{"$error":"#REF!"},{"$error":"#REF!"},{"$error":"#REF!"}]
[null,{"$error":"#REF!"},{"$error":"#REF!"},{"$error":"#REF!"}]
[null,{"$error":"#REF!"},{"$error":"#REF!"},{"$error":"#REF!"}]
[null,{"$error":"#REF!"},{"$error":"#REF!"},{"$error":"#REF!"}]
[null,{"$error":"#REF!"},{"$error":"#REF!"},{"$error":"#REF!"}]
[null,{"$error":"#REF!"},{"$error":"#REF!"},{"$error":"#REF!"}]
[null,{"$error":"#REF!"},{"$error":"#REF!"},{"$error":"#REF!"}]
[null,{"$error":"#REF!"},{"$error":"#REF!"},{"$error":"#REF!"}]
[null,{"$error":"#REF!"},{"$error":"#REF!"},{"$f":"IF(INDIRECT(E66)=\"\",\"\",INDIRECT(E66))","v":{"$error":"#REF!"}}]
[null,{"$error":"#REF!"},{"$error":"#REF!"},{"$error":"#REF!"}]
[null,{"$error":"#REF!"},{"$error":"#REF!"},{"$error":"#REF!"}]
[null,{"$f":"OFFSET(INDIRECT(E69),0,-7)","v":{"$error":"#REF!"}},{"$error":"#REF!"},{"$error":"#REF!"}]
[null,{"$error":"#REF!"},{"$error":"#REF!"},{"$error":"#REF!"}]

{"sheet":"More Info","index":4,"n_rows":992,"n_cols":2,"rows_kept":992,"cut":false,"hidden":true,"merged":[]}
[null,"Do you understand the checklist instructions? "]
[null,"Return to Checklist"]
[]
[null,"1.     Scope - Hardware installation of your 3PAR.   (A Software Startup checklist will be sent separately.)"]
[null,"2.     Purpose - To confirm your preparations are done.  Also to collect customer information and configuration details"]
[null,"3.     Goal - To accurately install your 3PAR in with one installation visit."]
[null,"4.     Approval - This checklist must be returned and approved before a hardware installation date will be scheduled."]
[null,"5.     Storage Architect - This is a technical checklist.  Consult your Storage SA for the answers to many of the items in this checklist."]
[null,"6.     Macros - must be enabled to run this checklist.  Item responses and field validations use macros.   See your PM if you cannot run macros."]
[null,"7.     More Info - link provides help, additional guidance, requirements, etc.  This is not a substitute for the reference manuals."]
[null,"8.     Commitment Dates"]
[null,"              Critical prep items must have a YES answer before hardware installation can be scheduled. (Power, network, rack, etc.)  Alternatively, "]
[null,"              COMMIT TO HAVE DONE BY  allows you to submit this checklist for approval before the item is done.   A date needs to be provided"]
[null,"              in the adjacent cell.   Naturally, HP will not schedule an installation before this date.    If you cannot keep your commitment date then"]
[null,"              notify your HP Storage PM as soon as possible."]
[null,"              A delay will likely occur if HP arrives to install the 3PAR to find the preparations are not done resulting in a second installation trip."]
[null,"9.     Preparations Must Be Done - That is a primary purpose of this checklist.  HW install cannot occur until preparations are done."]
[null,"10.   Scheduling the Installation"]
[null,"             This checklist must be approved before a date will be scheduled.    An install date will be selected as follows:"]
[null,"                   a.    After the longest commitment date (if any) in this checklist."]
[null,"                   b.   Within the Available Dates that you provided near the end of this checklist."]
[null,"                   c.   Open dates from the HP Installation Engineers."]
[null,"11.   Red Cells - All red cells must be answered.   They will become green when a response is entered."]
[null,"12.   Comments - A comment box is provided with each item to allow you to explain exceptions or provide other notes to the HP Storage PM."]
[null,"13.   Submit - Completed checklists should be emailed to your HP Storage PM (at top of checklist) for review and approval."]
[]
[null,"Return to Checklist"]
[]
[]
[]
[]
[]
[null,"3PAR 8000 Documentation"]
[null,"Return to Checklist"]
[]
[null,"The following 3PAR manuals, guides and documention may be needed while you plan and prepare for your 3PAR installation."]
[]
[null,"3PAR StoreServ 8000 Storage Site Planning Manual"]
[null,"http://h20564.www2.hpe.com/hpsc/doc/public/display?docId=c04777548"]
[null,"3PAR StoreServ 8000 Storage Installation Guide"]
[null,"http://h20564.www2.hpe.com/hpsc/doc/public/display?docId=c04728152"]
[null,"3PAR Service Processor Software User Guide"]
[null,"http://h20564.www2.hpe.com/hpsc/doc/public/display?docId=c02982065"]
[null,"Best Practices for Implementing HP 3PAR Virtual Service Processor"]
[null,"http://h20195.www2.hp.com/v2/GetPDF.aspx%2F4AA5-2044ENW.pdf"]
[null,"HP 3PAR StoreServ Storage Best Practices Guide"]
[null,"http://www8.hp.com/h20195/v2/GetDocument.aspx?docname=4AA4-4524ENW"]
[null,"HP 3PAR StoreServ Management Console 2.2 Release Notes"]
[null,"http://h20564.www2.hpe.com/hpsc/doc/public/display?docId=c04777555"]
[null,"HP 3PAR StoreServ Management Console 2.2 Administrator’s Guide"]
[null,"http://h20564.www2.hpe.com/hpsc/doc/public/display?docId=c04777556"]
[null,"HP 3PAR StoreServ Management Console 2.2 User Guide"]
[null,"http://h20564.www2.hpe.com/hpsc/doc/public/display?docId=c04777553"]
[]
[null,"All other 3PAR documentation can be found at"]
[null,"http://h17007.www1.hp.com/us/en/storage/info-library/index.aspx"]
[]
[null,"        Special Links for documents covering specific circumstances as refernced further below."]
[null,"HP 3PAR StoreServ Secure Service Architecture"]
[null,"Procedure to Collect the Weekly Files from Service Processor"]
[]
[null,"Return to Checklist"]
[]
[]
[]
[]
[null,"Data Center Type"]
[null,"Return to Checklist"]
[]
[null,"1.     This question is asked to help the Installation Engineer understand the type of environment he will be working it.   That is, customer data "]
[null,"         centers often differ significantly from a Colocation data centers:  Cages; security procedures; strict policies about movement, packaging"]
[null,"         waste; cell phone usage; outbound network access;  KVM access to the SP; direct access to network and storage adminstrators; "]
[null,"         lifting floor tiles; rules for plugging in power and cables; etc."]
[null,"2.     Knowing which type of data center the Installation Engineer will be working in will allow the Installation Engineer to better plan"]
[null,"        and prepare for his installation activities. "]
[]
[]
[]
[]
[]
[]
[]
[]
[]
[null,"Return to Checklist"]
[]
[]
[]
[]
[]
[null,"Is this data center a Secure Site or Dark Site?"]
[null,"Return to Checklist"]
[]
[null,"1.     A Dark Site is a site where the customer will NEVER allow an HP 3PAR SP to access the public internet.  Also know as a 3PAR Secure Site."]
[null,"         Thus, the SP public interface will be never be able to contact HP 3PAR Central to send alerts, error logs, and config files. "]
[null,"         This is commmon for government and extremely high secure data centers where the data center network is isolated from the Internet."]
[null,"2.     When Dark Site is selected customers must regularly monitor their 3PAR for alerts, capacity, and performance."]
[null,"3.     When failures, errors or warnings are discovered then customer must manually open service calls with the telephone."]
[null,"4.     Once per hour the SP gathers 3PAR system and error information and stores it locally on the SP.  For non Dark Sites, the SP transmits"]
[null,"         this data to 3PAR Central every four hours, or immediately if there is a critical alert.   HOWEVER, when Secure Site is selected, the files"]
[null,"         are still collected but the transfer is not allowed.   Customers are encourged to manually collect this file from the SP and manually send"]
[null,"         to HP 3PAR Central from a computer outside of the Dark Site.    Procedure to Collect the Weekly Files from the Service Processor should "]
[null,"         be downloaded from the Special Links section of near the top of this tab."]
[null,"4.     HP strongly recommends wherever possible that customers do have their 3PAR Service Processor connected to HP 3PAR Central."]
[]
[null,"Refer to HP 3PAR StoreServ Secure Service Architecture in the Special Links section near the top of this tab."]
[]
[null,"Return to Checklist"]
[]
[]
[]
[]
[]
[]
[null,"Has your configuration been validated against SPOCK?"]
[null,"Return to Checklist"]
[]
[null,"1.     SPOCK validation is to insure that your planned 3PAR configuration, including its integration into your existing infrastructure, will be"]
[null,"         supported by HP.    SPOCK stands for Single Point Of Connectivity Knowledge.  "]
[null,"2.     This validation should be done prior to your purchase.  If not, then it must be done now to discover any unsupported configurations."]
[null,"3.     This is especially important when your 3PAR is being installed into an existing storage infrastructure where older components"]
[null,"         (such as hosts, fabric switches, HBAs, management consoles or other 3PAR products) may not be supported by HP. "]
[null,"4.     If your entire infrastrcture is new (hosts OS, HBAs, SAN switches, Management Console) then you may answer NO with a comment."]
[null,"5.     The risk of operating a 3PAR with an unsupported configuration can be very high.  It may include permanent loss of data.  This"]
[null,"         is a critical step that should not be taken lightly."]
[null,"6.     The SPOCK website for HPE Storage Products can be found at:   (Requires an HP Passport Login.)"]
[null,"          http://www.hp.com/storage/spock "]
[null,"7.      Your HP Storage Architect or HP Storage Sales person that designed your solution will be able to help with this SPOCK validation"]
[]
[null,"Return to Checklist"]
[]
[]
[]
[]
[]
[null,"Do you have a 4-post square-hole rack?"]
[null,"Return to Checklist"]
[]
[null,"1.     This question is asked because you ordered a Field Installed 3PAR into a rack that you are provding."]
[null,"2.     The rack you provide must meet these requirements:"]
[null,"a.    19-inch rack.  (RETMA/IAS standard)"]
[null,"b.    Four posts.   Front-to-back, the posts should be 29-inches."]
[null,"c.     Square holes"]
[null,"d.     Power"]
[null,"e.     Available U-space."]
[null,"3.    Your rack will need to have PDUs with available C13 recepticals prior to the 3PAR installation.   If you ordered PDUs on this order then"]
[null,"        the either you need to install the PDUs yourself or you may have ordered HP PDU installation service."]
[null,"4.    Your rack will need to have sufficent available U-space for this installation.    The HP Installation Engineers cannot move any existing"]
[null,"        equipment within your rack to make space.  You will need to complete any re-racking of existing equipment prior to the 3PAR install."]
[]
[null,"Refer to Chapter 6 of the 3PAR Site Planning Manual for details and requirements.  (See Documents section for a link to this manual.)"]
[]
[null,"Return to Checklist"]
[]
[]
[]
[]
[]
[null,"Are  {N}  U of rack space available?"]
[null,"Return to Checklist"]
[]
[null,"1.     This question is asked because you ordered a Field Installed 3PAR into a rack that you are provding."]
[null,"2.     The number of U's are calculated based on the following:"]
[null,"a.    Two-node systems require 2 U's.   Four-node systems require 4 U's."]
[null,"b.    Each additional 2.5-inch SFF (Small Form Factor) drive enclosure is 2 U's."]
[null,"c.     Each additional 3.5-inch LFF (Large Form Factor) drive enclosure is 4 U's."]
[null,"d.    The optional Physical Service Processor (PSP) is 1 U. "]
[null,"3.    The calculation for {N} does not include any optional SAN switches, servers or other equipment that may be on this order."]
[null,"4.    This rack space should be contiguous.   The 3PAR components should be kept together unless special arrangements are made in advance."]
[null,"5.    The HP Installation Engineers cannot move any existing equipment within your rack to make space.  "]
[null,"        You will need to complete any re-racking of existing equipment prior to the 3PAR install."]
[null,"6.     If you ordered a 2-node system you should give serious consideration to reserving rack space directly above the node controllers"]
[null,"        to allow for the ease of adding another 2 nodes (2U) and additional drive shelves at 2U (SFF) or 4U (LFF) each."]
[]
[null,"Refer to Chapter 6 of the 3PAR Site Planning Manual for details and requirements.  (See Documents section for a link to this manual.)"]
[]
[null,"Return to Checklist"]
[]
[]
[]
[]
[]
[null,"Where in the rack should the 3PAR be placed?"]
[null,"Return to Checklist"]
[]
[null,"1.     This question is asked because you ordered a Field Installed 3PAR into a rack that you are provding.  Your choices are."]
[null,"a.    Middle (Recommended for ease of expansion.)"]
[null,"a.    Top"]
[null,"a.    Bottom"]
[null,"a.    U Location will be provided.   (Please use the comment section to provide U-location instructions.)"]
[null,"2.     The location within the rack (the U location) could impact your future ability to expand the 3PAR.   Middle rack installation typically"]
[null,"         provide the best options for future expansion."]
[null,"a.    Four-node systems in the middle of the rack with open Us above and below allow for additonal drive enclosures to be added."]
[null,"b.    Two-node systems should consider reserving space above the first two nodes to allow for additional nodes and drive enclosures."]
[null,"c.    Installing systems at the very top or very bottom may create special challenges and possible re-racking when expanding in the future."]
[null,"3.    Please consult with you Storage Architect to discuss racking location and requirements for future expansion."]
[]
[null,"Refer to Chapter 6 of the 3PAR Site Planning Manual for details and requirements.  (See Documents section for a link to this manual.)"]
[]
[null,"Return to Checklist"]
[]
[]
[]
[]
[]
[null,"Are {NN} power receptacles of type C13 available?"]
[null,"Return to Checklist"]
[]
[null,"1.     This questions is asked because your 3PAR will be field-racked into a rack at your data center.  {NN} is the number of receptacles needed."]
[null,"2.     C13-C14 power cords are supplied with each 3PAR, Drive Enclosure, and Service Processor.  "]
[null,"3.     If you are using NEMA 5-15 receptcales (household style) then you must supply {NN} of your own 10A (NEMA 5-15-to-C14) power cords."]
[null,"4.     These receptacles must be available prior to the hardware installation. "]
[null,"5.     Connecting the power:"]
[null,"         a.     C13 receptacles in your rack must be within 18\" of the installed 3PAR components.  The power cords are only 24\" in length."]
[null,"         b.    If you require that your data center staff connects the plugs into the rack receptacles, then you need to arrange"]
[null,"                 for your data center staff to be available when the HP Installation Engineer is ready for power to be connected. "]
[]
[]
[]
[]
[]
[null,"Refer to Chapter 4 of the 3PAR Site Planning Manual for details and requirements.  (See Documents section for a link to this manual.)"]
[]
[]
[null,"Return to Checklist"]
[]
[]
[]
[]
[]
[null,"Are your providing redundant power?"]
[null,"Return to Checklist"]
[]
[]
[null,"1.    Each 3PAR component is supplied with redundant Power Cooling Module (PCMs) each containing  power supply, battery, and cooling fan."]
[null,"        (The only exception is a Physical Service Processor, which can be ordered with either one or two PCMs.)"]
[null,"2.    The PCMs in each 3PAR enclosure must connect to separate PDUs. "]
[null,"3.    Each PDU in the rack must connect to an independent AC circuit, each controlled by its own circuit breaker."]
[null,"4.    \"Redundant\" in this context is only from your rack to the circuit breaker panel.  Building supplied redundancy is not a requirement."]
[null,"5.    Multiple outlets in a power distribution unit or power strip do not constitute an independent electrical source."]
[null,"6.    If you cannot provide redundant power, then you are at risk of system outage, data loss, and warranty violation if your one source of"]
[null,"        of power is interrupted, fails, or is unexpectedly shut off."]
[]
[null,"Refer to Chapter 4 of the 3PAR Site Planning Manual for details and requirements.  (See Documents section for a link to this manual.)"]
[]
[]
[]
[]
[null,"Return to Checklist"]
[]
[]
[]
[]
[]
[null,"Is there 36\" open space in front and behind the rack?"]
[null,"Return to Checklist"]
[]
[]
[null,"1.        36 inch service clearance is required directly in front of the rack. This is required due to the depth of the enclosure and "]
[null,"            potential to damage to other equipment that is in front of the rack/enclosure."]
[null,"2.        30 inch service clearance is required on both sides of the front of the rack. This is required because two people must lift the enclosure"]
[null,"            and set into the rack. The allocated space is necessary on each side for the person to stand and maneuver the enclosure.  This is only a"]
[null,"            requirement when installing 3PARs into customer-supplied racks or for upgrades to existing 3PARs.   Alternatively, you can provide HP"]
[null,"            with a server lift that will eliminate the need for side access."]
[null,"3.        30 inches of unobstructed clearance is required directly behind the enclosure to service the controller nodes (for example, do not "]
[null,"            attach PDUs, power-strips, power cord routing, and other things to the rear of the rack).  There must be unobstructed clearance"]
[null,"            directly behind the controller node enclosure in order to remove or install a controller node."]
[]
[null,"Refer to Chapter 6 of the 3PAR Site Planning Manual for details and requirements.  (See Documents section for a link to this manual.)"]
[]
[]
[null,"Return to Checklist"]
[]
[]
[]
[]
[]
[null,"SSMC Management Console (StorServe Management Console)"]
[null,"Return to Checklist"]
[]
[null,"The SSMC is tool used for daily 3PAR storage admin activities.  "]
[]
[null,"1.     The SSMC is a stand-alone server (physical or virtual) that your  Storage Admins access from your desktop web browser."]
[null,"2.     The SSMC is the primary utility for daily storage management functions.  Including: Provisioning, System Reporter, and Remote Copy."]
[null,"3.     Firewall —Open the inbound TCP port 8443 to allow SSMC to communicate with managed StoreServ Storage systems."]
[null,"4.     LDAP —Configure the LDAP server as an authentication method for connecting to the array."]
[null,"              Role mappings:  super-map, service-map, edit-map, browse-map, create-map, basic_edit-map, 3PAR_AO-map and 3PAR_RM-map."]
[null,"5.     System Requirements"]
[null,"              a.   64-bit, dual-core i5;  4GB RAM min;  2GB disk space"]
[null,"6.     OS Requirements"]
[null,"             a.   Windows Server 2012; Window Server 2012 R2; Windows 7 Pro;  Windows 8.1"]
[null,"             b.   RHEL 6.5; RHEL 7.0"]
[null,"6.     Hypervisor requirements: (When optionally running in a VM.)"]
[null,"             a.   VMware vSphere ESXi 5.5 or ESXi 6.0"]
[null,"             b.   Microsoft Windows 2012 R2 Hyper-V"]
[null,"7.     Username: If one SSMC manages multiple 3PARS, the username and password must be the same on all 3PARs managed by this SSMC."]
[null,"8.     Refer to HP 3PAR StoreServ Management Console (SSMC) Admin and User's Guide for details. "]
[]
[null,"Return to Checklist"]
[]
[]
[]
[]
[]
[null,"Will RCIP connections be used for replication?"]
[null,"Return to Checklist"]
[]
[null,"1.     This question is for customer that have purchased Remote Copy or Replication Suite and intend to replicate to another 3PAR over"]
[null,"         IP network connections, referred to as RCIP.   This is in contrast to using Remote Copy over Fiber Channal, RCFC."]
[null,"2.     If you answer YES to this question, you will be asked to provide additional information such as number of connections,  network"]
[null,"         information (IP, mask, gateway) and when they will be available."]
[null,"3.     MOST IMPORTANTLY, the RCIP network must be a separate subnet from the 3PAR management network."]
[null,"4.     RCIP utilized the built-in Ethernet port on each node, labeled on the unit as RC-1.  The maximum number of RCIP connections allowed it:"]
[null,"a.    Two for 2-node 3PARs."]
[null,"b.    Four for 4-node 3PARs."]
[null,"5.     File Persona has the option to use the RC-1 port rather than using an optional Ethernet adapter.  If that is the case, then RCIP cannot be used."]
[null,"6.     Many additional RC preparation questions will be asked in the Software Startup checklist if you purchase RC startup services."]
[]
[null,"Refer to Chapter 4 of the 3PAR Site Planning Manual for details and requirements.  (See Documents section for a link to this manual.)"]
[]
[null,"Return to Checklist"]
[]
[]
[]
[]
[]
[null,"Will RCFC connections be used for replication?"]
[null,"Return to Checklist"]
[]
[null,"1.     This question is for customer that have purchased Remote Copy or Replication Suite and intend to replicate to another 3PAR over"]
[null,"         Fiber Channel connections, referred to as RCFC.   This is in contrast to using Remote Copy over IP, RCIP."]
[null,"2.     While RC configuration and startup is not part of the HW installation (it is covered in the optionally purchased RC startup services), these "]
[null,"        questions about RCFC allows you to plan all your physical cable needs prior to the HW installation.  "]
[null,"3.     The HPE Installation Engineer will plug-in your RCFC cables if they are available and you provide a cable diagram."]
[null,"4.     See your Storage Architect for the number of RCFC connections required for your situation."]
[null,"5.     RCFC connections must be to a SAN fabric.   RCFC does not support direct-connections."]
[null,"6.     Many additional RC preparation questions will be asked in the Software Startup checklist if you purchase RC startup services."]
[]
[]
[]
[]
[null,"Return to Checklist"]
[]
[]
[]
[]
[]
[null,"Are  {N}  receptacles of type  {X}  available for PDUs?"]
[null,"Return to Checklist"]
[]
[]
[null,"1.     This question is asked because PDUs were found on your order.  "]
[null,"2.     This means you purchased one of the following:"]
[null,"a.   Factory racked 3PAR into HP racks.  In which case these power receptacles are for the HP racks"]
[null,"b.   Field racked into racks customer-supplied racks.  And you have ordered PDUs for those customer-supplied racks."]
[null,"c.   Field racked into new HP racks that you ordered seperately, in which the order also include PDUs for those HP racks."]
[null,"3.     Connecting the power:"]
[null,"         a.    If HP is allowed to connect the rack PDU power, then your power whips need to be poperly labled and easily available."]
[null,"         b.    If you require that your data center staff connects the plugs into your data center receptacles, then you need to arrange"]
[null,"                 for your data center staff to be available when the HP Installation Engineer is ready for power to be connected.  Alternatively, "]
[null,"                 your data center staff may complete the power connection prior to the arrival of the HP Installation Engineer if the rack is "]
[null,"                 properly unpacked and secured in location before connecting the power.  Make sure the PDU switches are OFF to prevent power up."]
[null,"        c.     The power circuits are turned on at the breaker panel."]
[]
[null,"Refer to Chapter 4 of the 3PAR Site Planning Manual for details and requirements.  (See Documents section for a link to this manual.)"]
[]
[]
[]
[]
[null,"Return to Checklist"]
[]
[]
[]
[]
[]
[null,"Are  {NN}  network drops available for the Storage System?"]
[null,"Return to Checklist"]
[]
[null,"1.     To install your 3PAR you must have an operating IP network.  The network cables must be in place.  The IP addresses that you specify"]
[null,"         further in this checklist must be configured and activated. "]
[null,"2.     Based on your HP sales order, the HP Storage PM has specified the number of network drops required for the 3PAR."]
[null,"         This number is for the 3PAR only!   The optional PSP, iSCSI, FCOE, RCIP, and SSMC are calculated separately in this checklist."]
[null,"3.     The 3PAR requires a minimum of 2 network drops.  However, if you have more than two nodes, then we calculated one network"]
[null,"         drop per node.  You and your SA may choose to utilize only the minimum of two network drops instead of one per node as calculated."]
[null,"4.     The IP addresses, GW and Mask for these network drops are specified elsewhere in this checklists.  "]
[null,"5.     Network switch port bonding is not required. The network connections to the 3PAR StoreServ operates in "]
[null,"         Active/Backup mode. (LACP, MLT, or ARP packet negotiation is not required.)"]
[null,"6.     A cabling diagram indicating which network cables are connected to which 3PAR ports has been created and is available at the"]
[null,"         time the connections are to be made by the HP Installation Engineer."]
[null,"7.     If you require that your data center staff connect the network cables to the 3PAR, then you need to arrange for your data center staff to"]
[null,"         available when the HP Installation Engineer is ready for the network to be connected.  Alternatively, data center staff may complete "]
[null,"         the connection prior to the arrival of the HP Installation Engineer but this requires that the hardware is pre-racked and secured"]
[null,"         in its permanent location."]
[]
[null,"Return to Checklist"]
[]
[]
[]
[]
[]
[null,"IP Address for StoreServ"]
[null,"Return to Checklist"]
[]
[]
[null,"1.    One Address - Only one IP address is required for the StoreServ System, although there are multiple network drops.    This is because"]
[null,"        each StoreServ operates as a Active/Backup cluster.  If your system has four nodes, each with a network connection, then it operates"]
[null,"        Active/Backup/Backup/Backup.    "]
[null,"2.    Static IP - It must be a static IP address."]
[null,"3.    Available - This IP address needs to be reserved and activated prior to the hardware installation."]
[null,"4.    DNS - If you are using DNS, then this IP address and the StoreServ name needs to be registered in your DNS prior to the hardware install."]
[null,"5.    No Bonding - Network switch port bonding is not required.    LACP, MLT, or ARP packet negotiation is not required"]
[]
[]
[]
[]
[null,"Return to Checklist"]
[]
[]
[]
[]
[]
[null,"Sparing Choice"]
[null,"Return to Checklist"]
[]
[null,"1.     What “sparing option” would you like to have configured into this 3PAR?    This is a global setting that must be set at installation time."]
[null,"2.     Your Storage Architect should know the answer to this question."]
[null,"3.     Default - Allocates one disk of spare chunklets for every 40 disks with a required minimum of four disks of spares."]
[null,"4.     Minimal - Allocates one disk of spare chunklets for every 40 disks with no required minimum disks of spares."]
[null,"5.     Maximal - Allocates one disk worth of spare chunklets per drive cage of the largest size disk in the system to provide “cage” level high availability."]
[null,"6.     Custom - Allows the user to allocate a specific number of chunklets for spare space (customize the number of spare chunklets)."]
[null,"           Please specify any custom sparing details in the comment block or talk to your HP Storage PM."]
[]
[]
[]
[]
[]
[null,"Return to Checklist"]
[]
[]
[]
[]
[]
[null,"OS, MU, or Patch levels"]
[null,"Return to Checklist"]
[]
[null,"1.     Unless you purchased a customized factory-installed OS version (which is rarely done) then the 3PAR OS that you will received will "]
[null,"         be the most currently available version with current updates and patches.   "]
[null,"2.     The HP Storage PM is unabe to determine what OS is being loaded at the factory until after the 3PAR has shipped."]
[null,"3.     It is common practice of the HP Installation Engineers to apply any recently-published updates and patches."]
[null,"4.     Between the time it was loaded at the factory and the time it is installed in your data center, version, updates and patches may have"]
[null,"         been released. A long delay in scheduling the 3PAR installation may result in several (or more) versions, update and patches to apply."]
[null,"5.     If you have a requirement for a specific verion, update and patch level for your 3PAR then two situations may occur."]
[null,"         a.    Upgrade"]
[null,"                i.     If an upgrade is needed to achieve your OS requirements, then HP will do that free-of-charge during the installation."]
[null,"            b.   Downgrade"]
[null,"                   i.     Downgrades are out-of-scope. "]
[null,"                   ii.    If you require an older OS version, update or patch, then a downgrade is required.  This is a non-trivial and complex process."]
[null,"                   iii.  An additional step is required.   After the hardware is installed you will need to open a support call to request the downgrade."]
[null,"                   iv.   This extra step will increase the time required to finish your 3PAR install. "]
[null,"                   v.    If downgrade service is not covered by your support contract, then an additional payment may be required."]
[null,"                   vi.   Please plan accordingly."]
[]
[null,"Return to Checklist"]
[]
[]
[]
[]
[]
[null,"Are you using FC for host connections?"]
[null,"Return to Checklist"]
[]
[null,"1.     Fiber Channel is the most typical method of connecting your host to the 3PAR StoreServ.  (Not to be confused with FCOE.)"]
[null,"2.     Ports - Each 3PAR StoreServ node has two built-in FC ports."]
[null,"         The optional FCA adapter card will provide each node with an additional four FC ports."]
[null,"3.     FC Connection Topology - You will be prompted to answer which method you will be using beween the 3PAR and your hosts."]
[null,"a.     SAN Switches"]
[null,"b.     Direct Connect"]
[null,"c.     Flat-SAN (used with c7000 Virtual Connect FlexFabri only)"]
[null,"4.     SFP - Shortwave FC SFPs are included.  If you need longwave FC SFPs, you will need to purchase them seperately."]
[null,"5.    Cable Count - You will be asked how many FC connections will be used for host connections.   (RCFC connections are calculated seperately.)"]
[null,"6.    Preparation - HPE recommends that you have the cables pulled prior to (or during) the HW installation so that the Engineer can plug them"]
[null,"        into the 3PAR ports.   "]
[null,"7.     SAN zoning of your existing SAN is not done during the HW install.  That is done during the SW Startup visit."]
[]
[null,"Return to Checklist"]
[]
[]
[]
[]
[]
[null,"Are you using iSCSI for host connections?"]
[null,"Return to Checklist"]
[]
[null,"1.     Requirement - Your 3PAR must have the optional H6Z10A host adapter card in order to answer \"YES\" to this iSCSI question."]
[null,"2.     Clarification - You cannot use the built-in 3APR Ethernet ports for ISCSI connections.  Also, you cannot use the optional"]
[null,"         Ethernet host adapeter cards H6Z05A or E7Y70A, which are meant for the File Persona only."]
[null,"3.     Preparation - If do answer YES to this question, then you will also need to:"]
[null,"a.   Answer a series of additonal questions on this checklist about cables, MTU rate, and network addresses."]
[null,"b.   Must provide a sufficient network infrastructure (network swtiches, cables, etc)  to support the iSCSI connections."]
[null,"4.     Number of cables - The 3PAR requires a minimum of two and a maximum of eight iSCSI connections.  See your Storage Architect "]
[null,"        for the number of iSCSI connections required for your environment."]
[null,"5.     Cable Type - Must be either fibre or very specific HP-branded DAC cables.  If you are using DAC, make sure they are the supported cables!"]
[null,"6.     During the HW installation, only your iSCSI network cables will be connected to the 3PAR.  The cables must be properly labeled."]
[null,"7.     Configuration of the 3PAR iSCSI ports and verifying communications with your iSCSI-connected hosts is completed "]
[null,"        during the Software Startup session, which is scheduled for sometime after the hardware installation.   You will be responsible for"]
[null,"        completing the iSCSI network configuration within your environment prior to the scheduled Software Startup session."]
[null,"8.     Manuals - Configuring your iSCSI network is outside the scope of the 3PAR manuals.   No referenced to 3PAR manuals can be provided here."]
[]
[null,"Return to Checklist"]
[]
[]
[]
[]
[]
[null,"Are you using FCOE for host connections?"]
[null,"Return to Checklist"]
[]
[null,"1.     Your 3PAR must have the optional H6Z10A host adapter card in order to answer \"YES\" to this FCOE question."]
[null,"2.     Please do not confuse FCOE (Fiber Channel Over Ethernet) with FC (Fiber Channel).   FC is far more common than FCOE. "]
[null,"3.     As a point of clarification, you cannot use the built-in 3PAR Ethernet ports for FCOE connections.  Also, you cannot use the optional"]
[null,"         Ethernet host adapeter cards H6Z05A or E7Y70A, which are meant for the File Persona only."]
[null,"4.     The 3PAR requires a minimum of two and a maximum of eight FCOE connections.  See your Storage Architect for the number of FCOE"]
[null,"         connections required for your environment."]
[null,"5.     During the hardware installation, only your FCOE network cables will be connected to the 3PAR.  The cables must be properly labeled."]
[null,"6.    The configuration of the 3PAR FCOE ports and verifying communications with your FCOE-connected hosts is commpleted "]
[null,"        during the Software Startup session, which is scheduled for sometime after the hardware installation.   You will be responsible for"]
[null,"        completing the FCOE network configuration within your environment prior to the scheduled Software Startup session."]
[null,"7.    Configuring your FCOE network is outside the scope of the 3PAR manuals.   As such, no referenced to 3PAR manuals can be provided here."]
[]
[null,"Return to Checklist"]
[]
[]
[]
[]
[]
[null,"Are you using File Persona?"]
[null,"Return to Checklist"]
[]
[null,"1.    In order to use the File Persona feature of this 3PAR you must also purchase the following:"]
[null,"a.     File Persona software license."]
[null,"b.     Ethernet Adapter card H6Z05A or E7Y70A.  Except if you plan to use the built-in 1GbE ports, which cannot already be used by RCIP."]
[null,"c.     File Persona startup service, HA124A1#5Y9.  Except if you made other arrangements outside of HPE Profesional Services."]
[null,"2.    You need to select which ports the File Persona virtual file server will use to provide file services."]
[null,"a.    The built-in 1GbE port.  (If it is not already used by RCIP.)"]
[null,"b.    The optional 4-port 1GbE Ethernet card, H6Z05A."]
[null,"c.     The option 2-port 10GbE Ethernet card, E7Y70A."]
[null,"3.    At this time, the virtual file server does not support FC connections."]
[]
[]
[]
[]
[]
[]
[null,"Return to Checklist"]
[]
[]
[]
[]
[]
[null,"Is 1 network drop available for the Service Processor?"]
[null,"Return to Checklist"]
[]
[]
[null,"1.     You are asked this question because you ordered a Physical Service Processor, PSP.  Your PSP will need one network connection."]
[null,"2.     To install your Service Processor you must have an operating IP network.  The network cables must be in place.  The IP addresses that you"]
[null,"         specify further in this checklist must be configured and activated. "]
[]
[]
[]
[]
[]
[]
[]
[]
[null,"Return to Checklist"]
[]
[]
[]
[]
[]
[null,"Is this SP in the same subnet as the Storage System?"]
[null,"Return to Checklist"]
[]
[]
[null,"1.     It is prefered that the Storage System and the Service Processor (VSP or PSP) be in the same subnet."]
[null,"2.     If not, the following ports must be opened for communication between the system and the SP:"]
[null,"a.    Port 22 (SSH)"]
[null,"a.    Port 5781 (Event Monitor)"]
[null,"a.    Port 5782 (CLI)"]
[null,"3.     It is aboluletly critical that the 3PAR Storage System be in contact with the Service Processor during the installation process. "]
[null,"         If communication is blocked or has slow response time then the 3PAR-SP pairing will fail and the installation attempt will be aborted."]
[]
[]
[]
[]
[]
[]
[]
[]
[null,"Return to Checklist"]
[]
[]
[]
[]
[]
[null,"Enable DNS Support?"]
[null,"Return to Checklist"]
[]
[]
[null,"1.     The Service Processor will need to know if it should use DNS or the IP address to find and communiate with the 3PAR Storage System."]
[null,"2.     If DNS is to be used then:"]
[null,"a.    Network access to the DNS needs to be available from both the Storage System and its Service Processor (VSP or PSP).  "]
[null,"b.    This DNS access needs to be available from the start of the hardware installation. (The install hangs for if DNS is not available.)"]
[null,"        3PAR Support can help you add it later if DNS is not available during the install and later becomes available. "]
[null,"c.    Before the HW installation date, you need to add the following into your DNS:"]
[]
[null,"     System Name                                                                                   Resolves To"]
[null,"1.  {StoreServe System Name}                                                                {IP address of the StoreServ}"]
[null,"2.   remote3par.houston.hp.com                                                            15.201.225.95"]
[]
[]
[]
[]
[]
[null,"Return to Checklist"]
[]
[]
[]
[]
[]
[null,"Is your Virtual Service Processor ready?"]
[null,"Return to Checklist"]
[null,"1.     The Virtual SP is only required for customers that did not purchase a Physical SP (PSP)."]
[null,"2.     This VSP is critical to the installation and must be ready and available before the 3PAR hardware installation."]
[null,"3.     The Service Processor…"]
[null,"                a.   provides remote error detection and reporting to support diagnostic and maintenance activities involving the storage systems."]
[null,"                b.   is composed of a Linux operating system and the SP software, and it exists as a single undivided entity. "]
[null,"                c.    is rarely accessed by the customer.   Instead, customers use the SSMC for daily management functions."]
[null,"4.     Caution"]
[null,"a.  VSP storage (datastore) must not reside on the 3PAR storage array it is managing."]
[null,"b.  vMotion, Live Migration, and Quick Migration are not supported.   Do not migrate the VSP.  Instead, you need to reinstall."]
[null,"c.  This VSP must be on a system that can be accessed by HP Installation & Support."]
[null,"d.  The HPE Installation Engineers must have KVM access to the VSP within close proximity of th 3PAR !!!"]
[null,"5.     Hypervisor Reqirement"]
[null,"a.  VMware vSphere ESXi 5.0,  ESXi 5.1, or ESXi 5.5"]
[null,"b.  Microsoft Hyper-V Server 2008 R2, Hyper-V Server 2012, or Hyper-V Server 2012 R2"]
[null,"c.  2 GB RAM, 256 GB free disk space, DVD ROM or ability to read ISO files."]
[null,"6.     Create your VSP"]
[null,"a.   The VM you create for the VSP is installed from an OVF (Vmware) and VHD (Hyper-V).   You do not need to provide a base OS."]
[null,"b.   The VSP ISO is found on the DVD \"HP 3PAR OS Suite E-Media\".  Or down load the most current version from this FTP site:"]
[null,"ftp://vsp_ima:7mh$ME6s@h2.usa.hp.com/VSP"]
[null,"        3PAR_Virtual_SP_X.X_GA_Vmware_ESX_software.iso  (for Vmware)"]
[null,"        3PAR_Virtual_SP_X.X_GA_Hyper_V_software.iso  (for Hyper-V)"]
[null,"c.        Boot the VSP and leave it at the first prompt.  The HP Installer will start there."]
[null,"7.     Refer to the Best practices for implementing HP 3PAR Virtual Service Processor at the top of this tab for details."]
[]
[null,"Return to Checklist"]
[]
[]
[]
[]
[]
[null,"Is there KVM access to the VSP close to the 3PAR?"]
[null,"Return to Checklist"]
[]
[null,"1.     This cannot be enphasized enough."]
[null,"2.     The HP Installation Engineer uses the VSP extensively and frequently during the installation of your 3PAR.    You need to provide:"]
[null,"a.    A monitor, keyboard, and mouse with the ability to log into the VSP."]
[null,"b.    Within close proximity of the 3PAR array.  Perferable in the same row as the 3PAR.  Please no more"]
[null,"        than two or three rows away as because the Installation engineer will need visit the VSP many times during the installation."]
[null,"3.     This will also be true for the HP Service Technician during future upgrades, maintenance and problem solving visits. "]
[]
[]
[]
[null,"Return to Checklist"]
[]
[]
[]
[]
[]
[]
[null,"Disable non-encrypted ports?"]
[null,"Return to Checklist"]
[]
[null,"You have the option to disable non-encrypted ports. Common Criteria Evaluated installations require this. However doing so will disable SP event handling, Recovery Manager for VMWare, SRA, and CLI connections with default parameters. Therefore you should only answer \"Yes\" to the below question if there is a strict requirement for all connections to be encrypted per CC requirements."]
[]
[null,"Most customers  answer NO.  If you must answer YES, please discuss the with your HP Storage project manager."]
[]
[]
[]
[]
[]
[]
[]
[null,"Return to Checklist"]
[]
[]
[]
[]
[]
[null,"Enable Permissive Mode on Service Processor?"]
[null,"Return to Checklist"]
[]
[null,"Permissive Mode is a configuration option for your Service Processor.   "]
[]
[null,"When Permissive Mode enabled, it will allow any system with network access to the SP (along with the correct login and pasword credentials) to access the SP. These settings can also be modified at any time post installation."]
[]
[null,"When Permissive Mode is disabled, you must provide at least one IP address (or IP address range) that will be entered in the SP firewall rules for a local management system.  This is the IP address of the system(s) that the storage management application/software will be installed on. This will allow those system to access the SP with your browser."]
[]
[null,"Accessing your SP is very rarely needed.  There are very few customer-configurable options on the SP.  No data can be accessed from the SP."]
[]
[null,"Typically Permissive Mode is enabled.   Most customers answer YES."]
[]
[null,"Return to Checklist"]
[]
[]
[]
[]
[]
[]
[]
[]
[null,"Will the SP be configured for Remote Monitoring?"]
[null,"Return to Checklist"]
[]
[null,"1.  Remote Monitoring (Diagnostic Data Transfer) ‐ Outbound connection enables diagnostic data transfer like alerts, InServ, SP log files, "]
[null,"and configuration files for remote diagnosis.  "]
[null,"2.  Your 3PAR Service Processor will need outbound communications to 3PAR Center to send diagnostics and error messages."]
[null,"3.  Preparation"]
[null,"a.  Port 443 (HTTPS) must be opened outbound in your firewall between the SP and the following addresses:"]
[null,"remote3par.houston.hp.com - 15.201.225.95 (primary IP address)"]
[null,"remote3par.houston.hp.com - 15.240.56.190 (secondary IP address)"]
[null,"b.  If a proxy server is required to reach your firewall from your 3PAR, then you must answer “YES” to the Proxy Server question."]
[null,"c.  Test by using a browser from the 3PAR subnet to URL https://15.201.225.95/drm/actions/index. You should see the Axeda login screen."]
[null,"4.  Important Note: If incorrect network or firewall settings results in an incomplete Remote Monitoring setup then you will need"]
[null,"open a support call with  3PAR Support Center to finish the setup once your network and firewall setting and corrected."]
[]
[null,"Return to Checklist"]
[]
[]
[]
[]
[]
[null,"Will the SP be configured for Remote Support?"]
[null,"Return to Checklist"]
[]
[null,"1.  Remote Support allows HPE 3PAR Support Center to connect to your 3PAR for problem solving."]
[null,"2.  This is not an unsolicited Inbound connection.  HPE support will respond to an outbound HTTPS request for remote support."]
[null,"3.  Preparation"]
[null,"a.  Port 443 (HTTPS) must be opened outbound in your firewall between the SP and the following addresses:"]
[null,"g4t2481g.houston.hp.com - 15.201.200.205"]
[null,"g4t2482g.houston.hp.com - 15.201.200.206"]
[null,"g9t1615g.houston.hp.com - 15.240.0.73"]
[null,"g9t1616g.houston.hp.com - 15.240.0.74"]
[null,"b.  If a proxy server is required to reach your firewall from your 3PAR, then you must answer “YES” to the Proxy Server question."]
[null,"c.  Test by using a browser from the 3PAR subnet to URL https://15.201.225.95/drm/actions/index. You should see the Axeda login screen."]
[null,"4.  Important Note: If incorrect network or firewall settings results in an incomplete Remote Support' setup then you will need"]
[null,"     open a support call with  3PAR Support Center to finish the setup once your network and firewall setting and corrected."]
[]
[null,"Return to Checklist"]
[]
[]
[]
[]
[]
[null,"Is there 36\" open space in front and behind the rack?"]
[null,"Return to Checklist"]
[]
[]
[null,"1.        36 inch service clearance is required directly in front of the rack. This is required due to the depth of the enclosure and "]
[null,"            potential to damage to other equipment that is in front of the rack/enclosure."]
[null,"2.        30 inch service clearance is required on both sides of the front of the rack. This is required because two people must lift the enclosure"]
[null,"            and set into the rack. The allocated space is necessary on each side for the person to stand and maneuver the enclosure.  This is only a"]
[null,"            requirement when installing 3PARs into customer-supplied racks or for upgrades to existing 3PARs.   Alternatively, you can provide HP"]
[null,"            with a server lift that will eliminate the need for side access."]
[null,"3.        30 inches of unobstructed clearance is required directly behind the enclosure to service the controller nodes (for example, do not "]
[null,"            attach PDUs, power-strips, power cord routing, and other things to the rear of the rack).  There must be unobstructed clearance"]
[null,"            directly behind the controller node enclosure in order to remove or install a controller node."]
[]
[null,"Refer to Chapter 6 of the 3PAR Site Planning Manual for details and requirements.  (See Documents section for a link to this manual.)"]
[]
[]
[null,"Return to Checklist"]
[]
[]
[]
[]
[]
[null,"Status of the SSMC Management Console? (StorServe Management Console)"]
[null,"Return to Checklist"]
[]
[null,"1.    The SSMC is the primary tool for daily storage management functions.  Including: Provisioning, monitoring, and Remote Copy."]
[null,"        It is a physical or virtual server (typically a VM) that your Storage Admins access from their desktop web browser."]
[null,"2.    Dedicated Server - The SSMC server should be dedicated to SSMC services.    IIS is a known incompatibility."]
[null,"3.    Firewall —Open the inbound TCP port 8443 to allow SSMC to communicate with managed StoreServ Storage systems."]
[null,"2.    SSMC Server Preparation"]
[null,"a.   Existing SSMC - Make sure the existing SSMC has network access (port 8443) to the new StoreServ. "]
[null,"b.   New Virtual SSMC - Build the VM but do not load the SSMC software.  HPE will help with that during the SW startup."]
[null,"c.   New Physical SSMC - Build the physical server but do not load the SSMC software.  HPE will help with that during the SW startup."]
[null,"5.     System Requirements"]
[null,"              a.   64-bit, dual-core i5;  4GB RAM min;  2GB disk space"]
[null,"6.     OS Requirements"]
[null,"             a.   Windows Server 2012; Window Server 2012 R2; Windows 7 Pro;  Windows 8.1"]
[null,"             b.   RHEL 6.5; RHEL 7.0"]
[null,"6.     Hypervisor requirements: (When optionally running in a VM.)"]
[null,"             a.   VMware vSphere ESXi 5.5 or ESXi 6.0"]
[null,"             b.   Microsoft Windows 2012 R2 Hyper-V"]
[null,"7.     Username: If one SSMC manages multiple 3PARs, the username and password must be the same on all 3PARs managed by this SSMC."]
[null,"8.     Refer to HP 3PAR StoreServ Management Console (SSMC) Admin and User's Guide for details. "]
[]
[null,"Return to Checklist"]
[]
[]
[]
[]
[]
[null,"Name and phone of onsite-contact during the HW install."]
[null,"Return to Checklist"]
[]
[]
[null,"1.    This is the name of the person that will be onsite.  This may be you.  It may not be.   For small data centers this is not a problem."]
[null,"        But for large data centers or COLOs the customer PM or the person filling out this checklist may not be located at the data center."]
[null,"        facilities.   Perhaps it may be your Data Center Manager, or Facilities Coordinator.      "]
[null,"2.     This person needs to be able to help the HP installation engineer answer questions or resolve issues with the installation if they are to"]
[null,"        occur.     In some data centers, this needs to be an escort."]
[]
[]
[]
[]
[]
[]
[null,"Return to Checklist"]
[]
[]
[]
[]
[]
[null,"Is Proxy Server used for Remote Monitoring or Support?"]
[null,"Return to Checklist"]
[]
[null,"1.    A Proxy Server stands between the Internet and your internal networks.  It serves as a additonal firewall. It prevents external users"]
[null,"       from directly accessing the internal information resources, or even knowing their location. All external requests for information are"]
[null,"       intercepted by the proxy server and checked for their validity, and only authorized requests are passed on to the internal server."]
[]
[null,"2.    Determination - Your Network Administrator will know if your oranization requires the use of a Proxy Server reach the Internet."]
[]
[null,"3.    Data Needed - If you answered YES to this question, then you will be prompted for additional data that is needed to configure"]
[null,"        the SP during the installation.  Such as, Protocol, Port, IP Address, and authentication creditentials."]
[]
[null,"4.    Your Preparations - Prior to the HW install date, you network admin will need to configure your proxy server to allow this SP"]
[null,"        to access the internet.     It is important this be done prior to the HW install."]
[]
[null,"Please see documentation provided by your proxy server vendor for detailed instructions."]
[]
[null,"Return to Checklist"]
[]
[]
[]
[]
[]
[null,"Has your Proxy Server configured?"]
[null,"Return to Checklist"]
[]
[null,"1.    You are being asked this because you indicated a Proxy Server must be used to access the Internet for SP remote connections."]
[]
[null,"2.     During your 3PAR installation the SP must contact 3PAR Central during the installation to validate commications and send config info.  "]
[null,"        In order to accomplish this, your Network Admin must configure your Proxy Server so that these communications will pass."]
[]
[null,"3.    Your Preparations - Prior to the HW install date, you network admin will need to configure your proxy server to allow this SP"]
[null,"        to access the internet.     It is important this be done prior to the HW install."]
[]
[null,"Please see documentation provided by your proxy server vendor for detailed instructions."]
[]
[null,"Return to Checklist"]
[]
[]
[]
[]
[]
[null,"Are you installing HP 3PAR Policy Server?"]
[null,"Return to Checklist"]
[]
[]
[null,"1.    Most customer do not purchase and install Policy Server.  This is a product typically used by very large enterprises."]
[null,"        In fact, your HP Storage PM (knowing what is on your order) may have pre-answers this question for you, "]
[]
[null,"2.     HP 3PAR Policy Server works to implement customer-configurable remote service access policies. Installed on a customerprovided\nhost, Policy Server provides the customer with ultimate flexibility and control to allow or deny outbound communication\nor remote service connections to and from an HP 3PAR StoreServ Storage system. Policy Server also serves as the centralized\npoint for collecting and storing audit logs of all diagnostic data transfers and authorized remote service connections to and from\nall configured HP 3PAR Storage systems.   See the 3PAR Quick Reference for more details."]
[]
[null,"3.     The part number on your sales order would be:"]
[null,"                   HP 3PAR Policy Manager Software LTU.    Part Number: TE400B"]
[]
[null,"Return to Checklist"]
[]
[]
[]
[]
[]
[null,"Are there any other details or risks that HP need to know?"]
[null,"Return to Checklist"]
[]
[]
[null,"1.    Many 3PAR installation are simple and non-complex.   This checklist and a few emails may be the only required coordination steps."]
[null,"        In fact, for some installations there may be no phone calls or open discussions.  "]
[]
[null,"2.     This checklist item is meant to reveal any additional details (or risks) in the preparation or installation for your 3PAR that has not "]
[null,"        already been documented in this checklist."]
[]
[null,"3.     Please put any statements into the Comment section of this question."]
[]
[null,"4.     If you that your response requires further discussion with the Storage PM, then please put CALL ME in the Comment section."]
[]
[]
[null,"Return to Checklist"]
[]
[]
[]
[]
[]
[null,"Arrivial, parking, entry, or security instructions."]
[null,"Return to Checklist"]
[]
[]
[null,"1.    Please provide any special instructions for the HP Installation Engineers about arriving at your data center.   Some data centers are"]
[null,"        small and have no requirements.  However, large data centers and COLOs often many access and entry instructions."]
[null,"2.    These instructions my include:"]
[null,"        a.  Parking"]
[null,"        a.  Door entry"]
[null,"        a.  Temporary badges"]
[null,"        a.  Intentification requirements"]
[null,"        a.  Person to call upon reaching the security desk"]
[null,"        a.  Etc."]
[]
[]
[]
[null,"Return to Checklist"]
[]
[]
[]
[]
[]
[null,"Available HW install dates. "]
[null,"Return to Checklist"]
[]
[null,"1.    Please provide a date range (or choice of individual dates) for available installation dates for this 3PAR.   If this checklist is approved, then"]
[null,"        the HP Storage PM can negotiate on your behalf with the HP Installation Engineer for a firm install date."]
[null,"2.    If you answered  COMMIT TO BE DONE BY  to any key preparation items in this checklist then you must provide a comittment date"]
[null,"        that each prep item would be completed.   As such, the dates you offer for HW installation must be after those comittment dates."]
[null,"3.    Your Available HW Install Dates must be:"]
[null,"        a.    After the hardware delivery date  (which we cannot know for certain until it is actually shipped)"]
[null,"        b.    After any commit date specified in the checklist."]
[null,"4.    You may specify \"TBD\".    (It will not affect the approval of this checklist to specify TBD.)"]
[null,"         It is true that hardware delivery is unpredictable.  So if you are completing this checklist prior to  the delivery of your hardware then"]
[null,"         you either have to put TBD or put a date far enought into the furture that the HW will likely be delivered."]
[]
[]
[]
[null,"Return to Checklist"]
[]
[]
[]
[]
[]
[]
[]
[null,"Template More Info"]
[null,"Return to Checklist"]
[]
[null,"Entre More info text here"]
[]
[null,"Return to Checklist"]
[]
[]
[]
[]
[]
[null,"Revision History"]
[]
[null,"V141"]
[null,"Added FTP site for VSP software."]
[null,"Corrected Hide/Show logic for Remote Monitoring, Remote Support, Policy Servver, Proxy Server."]
[null,"Changed \"Is this data center a Sercure Site or Dark Site\" to \"Is this data center a Dark Site? (No Internet)\" to improve customer understanding."]
[null,"Changed logic for determining when all items are answered."]
[null,"Removed the decrotive but unnecessary X's and checkmarks next to the answer cells."]
[null,"Added code to force the use of marcos since many customers were not reading the instructions that macros must be enabled."]
[null,"V143"]
[null,"Added internal version number to allow for automated IRD creation."]
[null,"Renumbered all items.  PM items were changed to letters in preparation for moving to a separate tab."]
[null,"Moved the DNS item from the StoreServe section into the global section since both SS and SP use DNS, hence a global concept."]
[null,"Reworded some items to be more clear."]
[null,"Added more named cells for better internal control and maintainability."]
[null,"Macro changes for better detection of a completed checklist."]
[null,"Put * to left of mandatory answers that have \"commit\" as an option.  "]

{"sheet":"3PAR Ports","index":5,"n_rows":506,"n_cols":11,"rows_kept":506,"cut":false,"hidden":true,"merged":[]}
[]
[null,"3PAR 8000 - 2 Node - No Adapter Cards",null,null,null,null,null,null,null,null,"Return to Checklist"]
[]
[]
[]
[]
[]
[]
[]
[]
[]
[]
[]
[]
[]
[]
[]
[]
[]
[]
[]
[null,"3PAR 8000 - 2 Node - Fiber Channel Adapter",null,null,null,null,null,null,null,null,"Return to Checklist"]
[]
[]
[]
[]
[]
[]
[]
[]
[]
[]
[]
[]
[]
[]
[]
[]
[]
[]
[]
[null,"3PAR 8000 - 2 Node - iSCSI/FCOE",null,null,null,null,null,null,null,null,"Return to Checklist"]
[]
[]
[]
[]
[]
[]
[]
[]
[]
[]
[]
[]
[]
[]
[]
[]
[]
[]
[]
[null,"3PAR 8000 - 2 Node - 1GbE Ethernet (File Persona)",null,null,null,null,null,null,null,null,"Return to Checklist"]
[]
[]
[]
[]
[]
[]
[]
[]
[]
[]
[]
[]
[]
[]
[]
[]
[]
[]
[]
[null,"3PAR 8000 - 2 Node - 10GbE Ethernet(File Persona)",null,null,null,null,null,null,null,null,"Return to Checklist"]
[]
[]
[]
[]
[]
[]
[]
[]
[]
[]
[]
[]
[]
[]
[]
[]
[]
[]
[]
[null,"3PAR 8000 - 4 Node - No Adapter Cards",null,null,null,null,null,null,null,null,"Return to Checklist"]
[]
[]
[]
[]
[]
[]
[]
[]
[]
[]
[]
[]
[]
[]
[]
[]
[]
[]
[]
[]
[]
[]
[]
[]
[]
[]
[]
[]
[null,"3PAR 8000 - 4 Node - FCA cards in first node pair - No adapter cards in second node pair.",null,null,null,null,null,null,null,null,"Return to Checklist"]
[]
[]
[]
[]
[]
[]
[]
[]
[]
[]
[]
[]
[]
[]
[]
[]
[]
[]
[]
[]
[]
[]
[]
[]
[]
[]
[]
[]
[]
[null,"3PAR 8000 - 4 Node - FCA cards in both node pairs",null,null,null,null,null,null,null,null,"Return to Checklist"]
[]
[]
[]
[]
[]
[]
[]
[]
[]
[]
[]
[]
[]
[]
[]
[]
[]
[]
[]
[]
[]
[]
[]
[]
[]
[]
[]
[]
[null,"3PAR 8000 - 4 Node - FCA cards in first node pair - iSCSI/FCOE in second node pair.",null,null,null,null,null,null,null,null,"Return to Checklist"]
[]
[]
[]
[]
[]
[]
[]
[]
[]
[]
[]
[]
[]
[]
[]
[]
[]
[]
[]
[]
[]
[]
[]
[]
[]
[]
[]
[]
[]
[null,"3PAR 8000 - 4 Node - FCA cards in first node pair - 1GbE in second node pair.",null,null,null,null,null,null,null,null,"Return to Checklist"]
[]
[]
[]
[]
[]
[]
[]
[]
[]
[]
[]
[]
[]
[]
[]
[]
[]
[]
[]
[]
[]
[]
[]
[]
[]
[]
[]
[]
[]
[null,"3PAR 8000 - 4 Node - FCA cards in first node pair - 10GbE in second node pair.",null,null,null,null,null,null,null,null,"Return to Checklist"]
[]
[]
[]
[]
[]
[]
[]
[]
[]
[]
[]
[]
[]
[]
[]
[]
[]
[]
[]
[]
[]
[]
[]
[]
[]
[]
[]
[]
[]
[null,"3PAR 8000 - 4 Node - iSCSI cards in first node pair - No adapter cards in second node pair.",null,null,null,null,null,null,null,null,"Return to Checklist"]
[]
[]
[]
[]
[]
[]
[]
[]
[]
[]
[]
[]
[]
[]
[]
[]
[]
[]
[]
[]
[]
[]
[]
[]
[]
[]
[]
[]
[]
[null,"3PAR 8000 - 4 Node - iSCSI/FCOE cards in both node pairs",null,null,null,null,null,null,null,null,"Return to Checklist"]
[]
[]
[]
[]
[]
[]
[]
[]
[]
[]
[]
[]
[]
[]
[]
[]
[]
[]
[]
[]
[]
[]
[]
[]
[]
[]
[]
[]
[null,"3PAR 8000 - 4 Node - iSCSI/FCOE cards in first node pair - 1GbE in second node pair.",null,null,null,null,null,null,null,null,"Return to Checklist"]
[]
[]
[]
[]
[]
[]
[]
[]
[]
[]
[]
[]
[]
[]
[]
[]
[]
[]
[]
[]
[]
[]
[]
[]
[]
[]
[]
[null,"3PAR 8000 - 4 Node - iSCSI/FCOE cards in first node pair - 10GbE in second node pair.",null,null,null,null,null,null,null,null,"Return to Checklist"]
[]
[]
[]
[]
[]
[]
[]
[]
[]
[]
[]
[]
[]
[]
[]
[]
[]
[]
[]
[]
[]
[]
[]
[]
[]
[]
[]
[null,"3PAR 8000 - 4 Node - 1GbE cards in first node pair - No adapter cards in second node pair.",null,null,null,null,null,null,null,null,"Return to Checklist"]
[]
[]
[]
[]
[]
[]
[]
[]
[]
[]
[]
[]
[]
[]
[]
[]
[]
[]
[]
[]
[]
[]
[]
[]
[]
[]
[]
[null,"3PAR 8000 - 4 Node - 1GbE  cards in both node pairs",null,null,null,null,null,null,null,null,"Return to Checklist"]
[]
[]
[]
[]
[]
[]
[]
[]
[]
[]
[]
[]
[]
[]
[]
[]
[]
[]
[]
[]
[]
[]
[]
[]
[]
[]
[null,"3PAR 8000 - 4 Node - 1GbE cards in first node pair - 10GbE in second node pair.",null,null,null,null,null,null,null,null,"Return to Checklist"]
[]
[]
[]
[]
[]
[]
[]
[]
[]
[]
[]
[]
[]
[]
[]
[]
[]
[]
[]
[]
[]
[]
[]
[]
[]
[]
[]
[null,"3PAR 8000 - 4 Node - 10GbE cards in first node pair - No adapter cards in second node pair.",null,null,null,null,null,null,null,null,"Return to Checklist"]
[]
[]
[]
[]
[]
[]
[]
[]
[]
[]
[]
[]
[]
[]
[]
[]
[]
[]
[]
[]
[]
[]
[]
[]
[]
[]
[]
[null,"3PAR 8000 - 4 Node - 10GbE  cards in both node pairs",null,null,null,null,null,null,null,null,"Return to Checklist"]

{"sheet":"Macros Required","index":6,"n_rows":7,"n_cols":2,"rows_kept":7,"cut":false,"hidden":false,"merged":[]}
[]
[]
[null,"Please enable macros to continue with this checklist."]
[]
[null,"This checklist utilizes Excel marcos.  Macros are used to validate answers and show (or hide) checklist items based on your previous responses."]
[]
[null,"If your company policy prohibits the use of Excel macros, please contact your HPE project manager to obtain an non-dynamic checklist that does not use macros."]